{"text_format":"3","workbook":"xlsx","n_sheets":3,"sheets":["二、经济社会发展市财政补助资金计划","三、固定资产投资计划","500万以上"],"not_rendered":{"defined_names":3},"read":"whole","date_system":"1900"}

{"sheet":"二、经济社会发展市财政补助资金计划","index":0,"n_rows":35,"n_cols":7,"rows_kept":35,"hidden":true,"merged":[[0,0,1,4],[16,2,16,3],[17,2,17,4],[18,2,18,3],[19,2,19,3],[20,2,20,3],[22,2,22,4],[24,2,24,4],[25,2,25,4]]}
["二、经济社会发展市财政补助资金计划"]
[]
["项目名称","财政补助资金\n（万元）","资金安排依据","补助资金项目","备    注"]
["合       计",{"$f":"B5+B16+B21+B26+B27+B28+B29","v":76620}]
["一、建设项目补助资金",{"$f":"B6+B10","v":3645},"政府投资项目计划"]
["（一）基础设施项目",{"$f":"SUM(B7:B9)","v":1850}]
["  1、道路交通建设",1100]
["  2、生态环境、环境卫生建设",350]
["  3、供热、供电、供排水设施建设",400]
["（二）社会民生项目",{"$f":"SUM(B11:B15)","v":1795}]
["1、教育、卫生",199]
["2、文化、体育",126]
["3、社会保障",600]
["4、社会公共服务能力建设",470]
["5、富农惠农",400]
["二、经济发展扶持资金",{"$f":"SUM(B17:B20)","v":58800}]
["1、经济发展扶持资金",2000,"1、市委发（2011）81号、嘉政发（2010）48号确定的招商引资、地方企业财政扶持资金（即税返资金）；\n2、市委发（2008）50号文件确定的第三产业发展扶持资金；\n3、市委、市政府确定的基本建设项目贴息资金；\n4、嘉政发（2008）59号文件确定的地方工业考核奖励资金；\n5、嘉政发（2006）57号文件确定的节能降耗专项资金；\n6、嘉政发（2008）12号文件确定的争创名牌产品奖励资金；\n7、改制企业生活费补助；\n8、市委发（2011）81号文确定的招商引资工作补助资金；\n9、市委发（2010）50号文确定的非公有制发展专项资金 ；\n10、嘉西光伏产业园草原补偿资金；\n11、嘉政发（2010）4号文确定供销社农资储备贴息资金；\n12、嘉政发（2010）25号文确定医改补偿资金；\n13、嘉政办发（2013）158号文确定农村妇女小额担保贷款市级财政贴息资金；\n14、第三次经济普查和城乡住户调查一体化改革工作经费。",null,"招商引资财政扶持、第三产业发展扶持、基本建设项目贴息、节能降耗、非公有制发展、价格调节基金等资金使用由发改委、财政局审核；地方企业财政扶持、地方工业考核奖励、争创名牌产品奖励、改制企业生活费补助等资金使用由发改委、工信委、财政局审核。"]
["2、各类贷款债务本息资金",{"$f":"55000+700","v":55700},"归还开行贷款、政府债券及日元贷款等本息资金，其中：甘肃省财政厅贷款10000万元，开发银行贷款本息合计8999万元，日元贷款本息合计932万元，政府债券转贷资金本息合计90万元，农业发展银行贷款本息合计3544万元，建设银行贷款本息合计11187万元，兰州银行贷款本息合计8264万元，中期票据贷款本息合计10525万元，正大示范项目贴息1679万元，正大本息合计700万元。"]
["3、3341项目工程",800,"实施3341项目工程，争取国拨省补资金，做好项目前期工作",null,"发改委、财政局审核"]
["4、三区建设专项资金",300,"市委发（2010）47号"]
["三、专项补助资金",{"$f":"SUM(B22:B25)","v":3473}]
["1、粮食补贴资金",473,"市政府常务会议纪要（2010）7号、\n嘉政办发（2009）69号","小麦储备16130吨，成品粮储备1000吨，食用油储备463吨","1、市级储备粮油费用补贴219.61万元，其中：原粮储备16130吨，财政补贴161.3万元；成品粮储备1000吨，财政补贴16.1万元；食用油储备603吨，每年财政费用补贴42.21万元。2、市级储备粮油贷款利息补贴预计253.4万元。两项合计财政补贴473.01万元。"]
["2、农村公路养护费补助",100,"国办发（2005）49号、甘政办发（2007）163号、嘉政办发（2009）19号"]
["3、旅游发展专项",{"$f":"3000-1000","v":2000},"嘉政发（2012）37号","用于旅游基础设施建设、旅游产品研发，培育精品线路和旅游宣传促销，旅游企业、星级酒店、星级农家乐品牌提升奖励，航线补助，旅游标准化试点城市创建等，旅游、体育等节会筹办","旅游局、体育局、文广新局等部门提出计划，发改委、财政局审核后，报市政府审定",null,5.51]
["4、公交线路及IC卡补贴",900,"包括老年人刷卡、各种优惠卡补贴，老年人乘车保险，公交运营补贴，2013年补贴欠款"]
["四、城乡社区公共设施建设与维护资金",6000,"城乡公共基础设施建设资金和维护资金"]
["五、科技经费",900,null,null,"科技局、发改委、财政局审核"]
["六、人才工作专项资金",1000,"嘉发（2012）80号"]
["七、社会保障及安置就业资金",{"$f":"SUM(B30:B35)","v":2802}]
["  1、城市居民医疗保险补助资金",315]
["  2、新型农村医疗保险补助资金",140]
["  3、城乡居民养老保险补助资金",957,"嘉政发（2011）65号"]
["  4、城乡居民最低生活保障补助资金",840,"政府常务会议纪要（2012）14号"]
["  5、社会保障和安置就业资金",350]
["  6、居家养老服务补助资金",200]

{"sheet":"三、固定资产投资计划","index":1,"n_rows":24,"n_cols":9,"rows_kept":24,"hidden":true,"merged":[[0,0,0,8],[1,0,1,8],[2,0,3,0],[2,1,3,1],[2,2,3,2],[2,3,2,7],[2,8,3,8]]}
["三、固定资产投资计划"]
["单位：亿元"]
["项目名称","2013年预计完成","2014年投资计划","资金来源",{"$nulls":4},"备注"]
[{"$nulls":3},"市财政","国省补","融资及贷款","招商引资","自筹及其它"]
["嘉峪关市",122.6,160,1,6,35,70,48]
["其中："]
["酒钢",54.6,71,null,null,32,null,39]
["地方",68,89,1,6,3,70,9]
{"$rows_empty":15}
[{"$nulls":6},5.51]

{"sheet":"500万以上","index":2,"n_rows":140,"n_cols":13,"rows_kept":140,"merged":[[0,0,0,1],[1,0,1,3],[3,0,3,12],[4,0,4,9],[4,11,4,12],[5,0,6,0],[5,1,6,1],[5,2,6,2],[5,3,6,3],[5,4,6,4],[5,5,6,5],[5,6,6,6],[5,7,6,7],[5,8,5,9],[5,10,6,10],[5,11,6,11],[5,12,6,12],[7,0,7,3],[8,0,8,3],[9,0,9,3],[10,0,10,3],[16,0,16,3],[27,0,27,3],[28,0,28,3],[38,0,38,3],[43,0,43,3],[47,0,47,3],[51,0,51,3],[53,0,53,3],[57,0,57,3],[58,0,58,3],[59,0,59,3],[71,0,71,3],[78,0,78,3],[90,0,90,3],[91,0,91,3],[102,0,102,3],[126,0,126,3],[129,0,129,3],[132,0,132,3]]}
[]
["附件2"]
[]
["嘉峪关市2021年市列重点建设项目清单"]
["                    ",{"$nulls":10}," 单位：万元"]
["序\n号","项目名称","建设\n性质","主要建设内容及规模","建设\n年限","总投资","截止2020年底累计完成投资","项目进展情况","2021年度计划",null,"项目建\n设单位","项目责\n任单位","备注"]
[{"$nulls":8},"投资","建设内容"]
["合计（110项）",{"$nulls":4},{"$f":"F9+F58","v":{"v":3144180.8899999997,"d":"3144181"}},{"$f":"G9+G58","v":432710},null,{"$f":"I9+I58","v":{"v":1143500.43,"d":"1143500"}}]
["一、续建项目（38项）",{"$nulls":4},{"$f":"SUM(F10+F28)","v":{"v":1586050.95,"d":"1586051"}},{"$f":"G10+G28","v":432710},null,{"$f":"I10+I28","v":569143}]
["（一）基础设施及民生保障工程（15项）",{"$nulls":4},{"$f":"SUM(F11+F17)","v":{"v":282751.51,"d":"282752"}},{"$f":"SUM(G11+G17)","v":162686},null,{"$f":"SUM(I11+I17)","v":103339}]
["1、基础设施及社会民生项目（5项）",{"$nulls":4},{"$f":"SUM(F12:F16)","v":{"v":50119.51,"d":"50120"}},{"$f":"SUM(G12:G16)","v":20656},null,{"$f":"SUM(I12:I16)","v":24396}]
[1,"地下管网建设工程（七期）","改造","新建及改建提升公用管网，主要包括给水15千米、排水7.5千米、供热7.8千米×2；新建污水提升泵站1座、改造1座","2020\n－\n2021",8762,1000,"已开工建设",7762,"完成建设任务","住建局","住建局","全省重点投资项目"]
[2,"2018年城市南区道路新建工程","续建","包括城市南区18条道路（20个子项目），合计长度约13.7千米","2018\n-\n2022",19688,10750,"已进场施工",4500,"完成年度计划建设任务","住建局","住建局","全省重点投资项目"]
[3,"第一人民医院住院部综合楼改扩建项目","续建","总建筑面积2.79万平方米的地下一层、地上十四层业务楼1栋，同时配套建设水、电、暖等基础设施；对原外科住院部外立面、建筑内部消防、给排水、暖气、强弱电、门窗、建筑内部、部分医疗设施实施改造，改造面积8300平方米","2020\n-\n2022",14500,6705,"已开工建设",7165,"完成年度计划建设任务","第一人民医院","卫健委","全省重点投资项目"]
[4,"疾病预防控制中心实验室检测能力提升项目","续建","总建筑面积1437平方米，其中维修改造面积为322.62平方米。同时，购置实时荧光定量PCR仪、全自动病原核酸检测系统、微生物现场快速检测仪等致病微生物检验检测相关设备","2020\n-\n2021",{"v":2669.51,"d":"2670"},460,"完成抗疫特别国债460万元投资，并形成实物工程量",2210,"完成建设任务","疾病预防控制中心","卫健委"]
[5,"第二中学综合教学楼建设项目","续建","总建筑面积1.21万平方米的综合教学楼一座","2020\n-\n2021",4500,1741,"已开工建设",2759,"完成年度建设任务","第二中学","教育局"]
["2、保障性安居工程及房地产开发项目（10项）",{"$nulls":4},{"$f":"SUM(F18:F27)","v":232632},{"$f":"SUM(G18:G27)","v":142030},null,{"$f":"SUM(I18:I27)","v":78943}]
[1,"2019年棚户区改造项目","改造","征迁改造建设、建化、天石、文化街区棚户区615套；对人民、志强、胜利、康乐、昌明、育才、兰新、嘉兴家园、峪关、世纪园、迎宾一至五等15个城市棚户区老旧小区建筑主体及室外基础设施进行改造，改造住宅楼295栋，改造户数10104户，改造面积75.9万平方米","2020\n-\n2021",50804,44362,"完成工程量的80%",6442,"完成建设任务","房产服务\n中心","房产服务\n中心","全省重点投资项目"]
[2,"2020年老旧小区改造项目","改造 ","对惠民小区、育才小区、爱民2小区、纺织小区、建安小区、昌盛小区等22个小区建筑主体及室外基础设施进行改造，共改造11285户，建筑面积103.19万平方米","2020\n-\n2021",23006,20960,"现已全面开工建设",2046,"完成建设内容","住建局","住建局","全省重点投资项目"]
[3,"建设街区棚户区改造项目","续建","总用地面积2.7万平方米，计划建设8.2万平方米5栋494套高层安置房，并配套建设附属配套商业设施","2020\n-\n2022",31600,11141,"完成一标段主体施工；二、四标段土方开挖；三标段已进场土方开挖",15000,"完成年度计划建设任务（主体全部封顶）","城投公司","城投公司","全省重点投资项目"]
[4,"南湖国际住宅小区B区一期工程","续建","新建6栋住宅楼，1个农贸市场，1个幼儿园，1栋商铺和1个地下车库，总建筑面积7.6万平方米","2020\n-\n2021",28800,14000,"主体三层施工",14800,"主体封顶","万隆房地产有限\n公司","房产服务中心","全省重点投资项目"]
[5,"南湖国际住宅小区B区二期工程","续建","新建8栋住宅楼及地下车库，总建筑面积4.9万平方米","2020\n-\n2021",24000,12160,"主体三层施工",11840,"主体封顶","万隆房地产有限\n公司","房产服务中心","全省重点投资项目"]
[6,"金色海岸二期工程","续建","新建9栋住宅楼，总建筑面积5万平方米","2019\n-\n2022",30000,18800,"完成主体施工",5000,"完成年度计划建设任务","凯运房地产开发有限\n公司","房产服务中心","全省重点投资项目"]
[7,"怡景园兰铁安居三期工程项目","续建","总建筑面积29500平方米，198套","2020\n-\n2021",11210,2510,"17#楼施工至±0，幼儿园基础开挖",8700,"完成建设任务","中国铁路兰州局集团\n公司","房产服务中心","全省重点投资项目"]
[8,"怡景园兰铁安居四期工程项目","续建","总建筑面积28000平方米，154套","2020\n-\n2021",10640,8347,"主体施工至±0",2293,"完成建设任务","中国铁路兰州局集团\n公司","房产服务中心","全省重点投资项目"]
[9,"怡景园兰铁安居五期工程项目","续建","总建筑面积29900平方米，286套","2020\n-\n2022",11362,1946,"25#楼主体施工至6层",9416,"完成建设任务","中国铁路兰州局集团公司","房产服务中心","全省重点投资项目"]
[10,"怡景园兰铁安居八期工程项目","续建","总建筑面积29500平方米，264套","2020\n-\n2021",11210,7804,"主体施工至2层",3406,"完成建设任务","中国铁路兰州局集团\n公司","房产服务中心","全省重点投资项目"]
["（二）生态产业项目（23项）",{"$nulls":4},{"$f":"SUM(F29+F39+F44+F48+F52+F54)","v":{"v":1303299.44,"d":"1303299"}},{"$f":"SUM(G29+G39+G44+G48+G52+G54)","v":270024},null,{"$f":"SUM(I29+I39+I44+I48+I52+I54)","v":465804}]
["1、先进装备制造产业（9项）",{"$nulls":4},{"$f":"SUM(F30:F38)","v":{"v":153995.9,"d":"153996"}},{"$f":"SUM(G30:G38)","v":66650},null,{"$f":"SUM(I30:I38)","v":30609}]
[1,"东兴铝业嘉峪关分公司电解槽阴极全石墨化结构优化项目二期工程","续建","对180台电解槽阴极全石墨化结构进行优化改造","2020\n-\n2021",32400,22500,"完成电解槽全石墨化结构优化22台。累计完成全石墨优化改造40台，完成项目工程量22%",9900,"完成建设任务","东兴铝业\n公司","酒钢公司","全省重点投资项目、省级生态产业领导包抓项目"]
[2,"东兴铝业公司45万吨生产线电解槽优化改造项目二期工程","续建","对144台电解槽优化改造上部结构，采用电解槽专用钢板整体更换256台电解槽槽壳","2019\n-\n2022",18000,15500,"完成槽壳制作15台，上部结构制安6台。累计完成130台电解槽槽壳制作和50台上部结构制安",1500,"完成年度计划建设任务","东兴铝业\n公司","酒钢公司","省级生态产业领导包抓项目"]
[3,"30万吨高端工业用铝合金棒材项目","续建","建设标准厂房1.2万平方米，办公用房及附属设施3000平方米，购进熔铸炉16台、熔铸深井及配套熔铸设备等，分两期建设安装熔铸棒生产线十六条，每期八条","2020\n-\n2022",64000,8038,"一期已基本建成",3000,"完成年度计划建设任务","嘉峪关铭翔铝业有限\n公司","工业园区\n管委会"]
[4,"羊毛及羊绒生产加工项目","续建","建设3条生产线，其中洗毛、羊毛加工、羊绒加工生产线各1条。配套建设污水处理站，废气净化处理设施、配电室、变压器等辅助设施","2020\n-\n2021",{"v":18855.9,"d":"18856"},13789,"正在建设厂房和办公楼",5067,"完成建设任务","甘肃省耐臻羊绒科技有限公司","工业园区\n管委会","全省重点投资项目"]
[5,"炼轧厂中板厂房屋面安全改造项目","续建","拆除及安装D-E-F跨厂房屋面板，完成相应区域下沉天窗钢窗更换工作","2020\n-\n2022",4300,65,"已开工建设",2500,"完成年度计划建设任务","宏兴股份\n公司","酒钢公司"]
[6,"选烧厂、储运部及炼铁厂皮带机无人值守改造项目","续建","选烧厂、炼铁厂、储运部胶带系统自动化程度低，缺乏设备联锁保护功能及跑偏、打滑、撕划、堵料等监测装置，存在安全隐患且需较多岗位人员值守","2020\n-\n2021",2800,1657,"储运部嘉北原料区域施工完成总体进度92%，储运部原料三区域施工完成总体进度65%，选烧厂区域完成总体进度10%",1143,"完成建设任务","宏兴股份\n公司","酒钢公司"]
[7,"碳钢薄板厂镀锌2#机组产品结构调整改造项目","续建","2#机组锌锅、炉鼻子、镀后及钝化后冷却装置施工，气刀施工。项目试车，气刀热试","2020\n-\n2022",5640,600,"已完成锌锅辊系及刮刀改造、镀后及钝化后冷却技术交流",4000,"完成年度计划建设任务","宏兴股份\n公司","酒钢公司"]
[8,"小型双工质涡旋膨胀发电生产项目","续建","建设3万平方米厂房，进行小型双工质涡旋膨胀发电设备生产项目及钢结构件加工项目","2020\n-\n2021",5500,3280,"正在建设3栋厂房，1号、2号厂房建设进度过半，3号厂房即将完工。场地及道路硬化全部完成",2220,"完成建设任务","甘肃贵龙工业制品有限公司","工业园区\n管委会"]
[9,"绿色高性能混凝土外加剂生产线项目","续建","场地面积3.3万平方米，车间4000平方米，办公生活区1000平方米，实验区400平方米，租用球磨机一台、粉剂钢仓4个及其他配套附属建筑设施若干，建设绿色高性能混凝土外加剂生产线项目","2020\n-\n2021",2500,1221,"项目已开工建设",1279,"完成建设任务","武汉三源特种建材有限公司嘉峪关分公司","工业园区\n管委会"]
["2、节能环保产业（4项）",{"$nulls":4},{"$f":"SUM(F40:F43)","v":29197},{"$f":"SUM(G40:G43)","v":8176},null,{"$f":"SUM(I40:I43)","v":21021}]
[1,"城市生活垃圾分类试点项目","续建","购置配套收运设备并投放安装智能垃圾分类设备；新建综合型分拣中心，日处理能力120吨，建设配套基础设施等","2020\n-\n2021",6687,966,"全市已配置分类垃圾桶，已完成垃圾分类试点示范区建设并运行",5721,"完成建设任务","市容环境卫生总站","市容环境卫生总站"]
[2,"焦化厂3#4#焦炉烟气脱硫脱硝项目","续建","热解析系统安装，余热锅炉系统安装，输灰系统安装，工艺系统管道及其他CEMS系统安装，布袋、袋笼安装；动力厂空压站改造","2020\n-\n2021",9610,4500,"完成EPC总承包单位招标；开工准备，人员进场",5110,"完成建设任务","宏兴股份\n公司","酒钢公司"]
[3,"宏晟电热公司2×125MW机组2#机通流改造项目","续建","完成高低压主轴加工、高低压內缸加工、高压喷嘴、现场设备解体拆除、高低压模块安装，机组点火、并网；机组性能考核试验","2020\n-\n2021",2900,490,"完成监理单位招标工作及设备采购施工合同内部会签",2410,"完成建设任务","宏晟电热\n公司","酒钢公司"]
[4,"甘肃嘉峪关废钢回收加工配送项目","续建","建设一期产能20万吨/年；二期产能40万吨/年的废钢加工量，作业区3.5万平米。利用金属打包机、龙门剪、抓钢机、颗粒剪断机等，对回收的废钢进行分拣、剪切、打包、整理、运输至使用钢厂。园区还配备电子地磅、龙门吊、装载机4台","2020\n-\n2021",10000,2220,"项目已开工建设",7780,"完成建设任务","甘肃陇晟恒再生资源有限公司","工业园区\n管委会"]
["3、文化旅游产业（3项）",{"$nulls":4},{"$f":"SUM(F45:F47)","v":145112},{"$f":"SUM(G45:G47)","v":75936},null,{"$f":"SUM(I45:I47)","v":53800}]
[1,"“一馆两中心”建设项目","续建","总建筑面积4.9万平方米，其中档案馆7000平方米，全民健身中心1.2万平方米，会展中心3万平方米","2020\n-\n2022",57079,16771,"档案馆、全民建设中心已全面开工建设",25000,"完成年度计划建设任务","档案馆","档案馆","省列重大项目"]
[2,"讨赖河嘉峪关安远沟至嘉酒分界线段水系生态环境综合治理工程","续建","改建左、右岸堤防共13.26km，新建洪水槽6km，新建生态子堤12km，在洪水槽与左右岸堤防之间新建湿地及绿化带各6km，新建调蓄库2座，气盾坝1座，新建水系连通管道工程、控制室及管理房等","2020\n-\n2023",64072,38604,"进行1#调蓄水库上、下湖土方开挖工作，原右岸堤防碾压回填工作",25400,"完成年度计划建设任务","嘉峪关市讨赖河生态建设开发有限责任公司","水务局\n水投\n公司","省列重大项目"]
[3,"草湖国家湿地公园建设项目","续建","实施湿地保育区和恢复重建区生态建设、湿地公园服务区建设、湿地科普宣教、科研监测基础设施建设及仪器设备配套、戈壁特色生态旅游区建设","2018\n-\n2021",23961,20561,"现已完成了部分工程建设任务",3400,"完成建设任务","草湖国家湿地保护\n办公室","林草局","全省重点投资项目"]
["4、通道物流及循环农业产业（3项）",{"$nulls":4},{"$f":"SUM(F49:F51)","v":{"v":324035.54,"d":"324036"}},{"$f":"SUM(G49:G51)","v":94593},null,{"$f":"SUM(I49:I51)","v":113650}]
[1,"S06酒嘉绕城高速公路工程（嘉峪关段）","续建","路线起自酒泉市肃州区银达镇下官地，以枢纽立交与肃州至航天城公路相接，经嘉峪关新城镇泥沟、野麻湾、峪泉镇断山口、黄草营，终点位于大草滩水库西侧，以枢纽立交与G30连霍高速公路相接，线路全长57.76公里（其中：嘉峪关境内41.49公里）","2019\n-\n2022",300000,90711,"已开工建设",100000,"完成年度计划建设任务","甘肃公航旅酒嘉高速公路管理有限公司","交通局","省列重大项目、\n省级生态产业领导包抓项目"]
[2,"旧货市场搬迁改造项目","新建","一期嘉峪关市农贸及旧货综合交易市场，为半敞开式轻钢结构，总建筑面积13035.5平方米；二期嘉峪关市农贸综合批发市场，拆除现有钢结构储运间，原址新建钢筋混凝土结构局部三层、地下一层的农贸综合批发市场，总建筑面积23053平方米","2021\n-\n2023",{"v":9535.54,"d":"9536"},1032,"一期工程已开工建设；二期编制初步设计",2000,"完成年度计划建设任务","市场开发建设有限责任公司","市场开发建设有限责任公司"]
[3,"祁牧乳业牧场扩建项目","续建","建设牛舍、挤奶厅、通廊等生产区，机械库、草料堆场等饲草区，配电室、管理用房等辅助生产区、粪污区、辅助生产设施等","2020\n-\n2021",14500,2850,"完成部分标段招标及部分工程施工设计；完成部分牛舍安装及配套用房浇筑，生活区锅炉更换，部分机械设备到场等",11650,"完成年度计划建设任务","祁牧乳业\n公司","农业农村局\n 酒钢公司","全省重点投资项目"]
["5、军民融合产业（1项）",{"$nulls":4},{"$f":"SUM(F53)","v":600000},{"$f":"SUM(G53)","v":15069},null,{"$f":"SUM(I53)","v":220000}]
[1,"嘉峪关综合保障区建设项目","续建","主要包括嘉核科学城及生活保障区两部分，嘉核科学城主要建设科研试验及装备装置开发设施；生活保障区主要建设住宅和配套设施，提供人才居留保障条件","2020\n-\n2030",600000,15069,"2号地和3号地正在施工；1号、4号、6号、13号地块准备启动建设",220000,"完成年度计划建设任务","甘肃鼎安房地产开发有限公司","四0四公司","省列重大项目"]
["6、清洁生产产业（3项）",{"$nulls":4},{"$f":"SUM(F55:F57)","v":50959},{"$f":"SUM(G55:G57)","v":9600},null,{"$f":"SUM(I55:I57)","v":26724}]
[1,"宏晟电热公司2×350MW热电联产机组乏汽余热回收项目","续建","将酒钢电厂2台350MW汽轮机组的乏汽余热用于供热，实现供热1000万平方米。改造增加凝汽器和吸收式热泵机组，配套建设电厂内管网、电气等辅助系统","2020\n-\n2022",17235,100,"完成施工一标段招标及初步设计审查，开标后组织开工准备工作",4000,"完成年度计划建设任务","宏晟电热\n公司","酒钢公司","全省重点投资项目"]
[2,"焦化厂1-4#焦炉煤气净化系统优化改造项目一期工程","续建","拆除现有脱硫系统，新建4套脱硫再生塔系统、1套再生尾气回收系统、1套热泵法蒸氨系统及空压机室、配电室等","2019\n-\n2022",14500,6000,"完成初步设计，施工图设计工作量的90%；完成主体设备土建施工标段3台脱硫塔和3台再生塔的基础土方开挖",7000,"完成年度计划建设任务","宏兴股份\n公司","酒钢公司","全省重点投资项目、省级生态产业领导包抓项目"]
[3,"宏晟电热公司2×125MW机组超低排放改造项目","续建","#1机组脱硝系统改造，#1锅炉系统改造，给水管道安装，#1机组除尘器改造。改造后系统进入冷态调试，点火热态调试","2020\n-\n2021",19224,3500,"完成监理招标工作；一标段EPC招标完成，合同签订完成，办理开工手续",15724,"完成建设任务","宏晟电热\n公司","酒钢公司","全省重点投资项目、省级生态产业领导包抓项目"]
["二、计划新开工项目（72项）",{"$nulls":4},{"$f":"F59+F91","v":{"v":1558129.94,"d":"1558130"}},null,null,{"$f":"I59+I91","v":{"v":574357.4299999999,"d":"574357"}}]
["（一）基础设施及民生保障工程（28项）",{"$nulls":4},{"$f":"F60+F72+F79","v":{"v":628247.29,"d":"628247"}},null,null,{"$f":"I60+I72+I79","v":{"v":253074.43,"d":"253074"}}]
["1、基础设施工程（11项）",{"$nulls":4},{"$f":"SUM(F61:F71)","v":{"v":155682.65,"d":"155683"}},null,null,{"$f":"SUM(I61:I71)","v":{"v":82359.6,"d":"82360"}}]
[1,"城市南区金港路以东基础设施建设工程--道路工程","新建","主要建设主干路7566米，次干路9013米，支路5345米，合计总长21924米","2021\n-\n2025",{"v":52040.99,"d":"52041"},null,"正在开展前期工作",10000,"完成年度计划建设任务","住建局","住建局","全省重点投资项目"]
[2,"城市南区金港路以东基础设施建设工程--地下管网建设工程","新建","主要包括给水、排水、供热三部分。其中给水，新建DN100-DN400管道30.92千米；排水，新建DN300-DN600管道19.24千米；供热，新建18座地上热力站，总供热面积403.19万平方米","2021\n-\n2025",{"v":40616.66,"d":"40617"},null,"正在开展前期工作",20000,"完成年度计划建设任务","住建局","住建局","全省重点投资项目"]
[3,"明珠路提升改造工程","改造","改造总长4060米，道路红线宽度为60米，主要对道路整体主干道、部分非机动车道、人行道进行改造；同时改造道路绿化、预埋管涵工程、交通工程等；并配套建设道路雨水收集工程","2021\n－\n2022",10573,null,"现已完成可研批复，初设已完成编制",{"$f":"F63*0.8","v":{"v":8458.4,"d":"8458"}},"完成年度计划建设任务","住建局","住建局","全省重点投资项目"]
[4,"新华路机动车道提升改造工程","改造","分两期实施，一期改造新华路（迎宾路—嘉北工业园区拐弯）全段10.38公里机动车道，同步实施道路工程、雨水工程、电气工程及交通附属工程等；二期改造新华南路和观礼大道，总长度4160.387米，道路红线60米","2021\n－\n2022",21676,null,"正在开展前期工作",17080,"完成年度计划建设任务","住建局","住建局","全省重点投资项目"]
[5,"玉泉中路提升改造工程","改造","改造玉泉路（建设路—兰新路）全段1800米机动车道沥青混凝土路面约2.7万平方米，改造非机动车道沥青混凝土路面约1.8万平方米，改造人行道约2.5万平方米，改造道牙石及护坡约11000米，同时配套雨水收集系统，改造绿化带，完善交通设施等道路附属设施","2021\n－\n2022",3481,null,"现已完成可研批复，初设已完成编制",{"$f":"F65*0.8","v":{"v":2784.8,"d":"2785"}},"完成年度计划建设任务。","住建局","住建局"]
[6,"双拥路（部队路口—关城北路）提升改造工程","改造","改造道路长度1400米，将现有主干道拓宽至21米，机动车车行道15米，两侧非机动车道各3米，同时对绿化、路灯、交通设施等道路附属设施进行改造","2021\n－\n2022",2352,null,"现已完成可研批复，初设已完成编制",2352,"完成建设任务","住建局","住建局"]
[7,"五大市场周边道路新建工程","新建","新建道路总长2272.3米，分别为安远三街872.6米、安远四街500米、安远二街899.7米；道路红线宽度均为42m，主要新建道路主干道、道侧石及护坡、道路机非分隔带、预埋管涵、交通工程等","2021\n－\n2022",2890,null,"现已完成可研批复，初设已完成编制",2312,"完成年度计划建设任务","住建局","住建局"]
[8,"机场路雨排设施建设工程","改造","在明珠路与机场路交叉至机场路东线防洪渠，新建DN300-DN1400雨水管线5.92Km，配套建设检查井、单篦雨水口、防坠网等附属设施","2021\n-\n2022",3403,null,"已完成可研、初步设计、土地、规划等手续，待资金到位后进行招标工作",{"v":2722.4,"d":"2722"},"完成年度计划建设任务","住建局","住建局"]
[9,"金港路上跨讨赖河大桥工程","新建","金港路上跨讨赖河大桥新建工程，新建上跨讨赖河桥梁一座及其附属设施，桥梁宽度约38米，全长约220米","2021\n-\n2022",10000,null,"正在进行可行性研究报告的编制工作",8000,"完成年度建设任务","住建局","住建局"]
[10,"地下管网建设工程（十期）","改造及新建","完成供热一级管网DN500-800/3.48*2km， 给水DN300-600/6.09km",2021,6000,null,"正在委托编制可研，力争上半年开工建设",6000,"完成年度计划建设任务","住建局","住建局"]
[11,"2021年农村公路建设工程","新建","嘉峪关市农村公路提质改造示范项目，改造4公里；2021年自然村（组）通硬化路项目，建设改造自然村组农村公路32公里，共涉及5个行政村",2021,2650,null,"正在编制项目可行性研究报告",2650,"完成建设任务","交通局","交通局"]
["2、社会及民生保障工程（6项）",{"$nulls":4},{"$f":"SUM(F73:F78)","v":{"v":68799.83,"d":"68800"}},null,null,{"$f":"SUM(I73:I78)","v":{"v":27269.83,"d":"27270"}}]
[1,"第一人民医院门诊楼建设项目\n","新建","拆除老院区门诊楼，原址新建一栋地上8层建筑面积9500平方米，地下一层建筑面积3000平方米综合楼。建设区域医学体检中心、影像中心、检验中心、病理中心、心电中心及公共卫生临床中心，构建区域信息中继平台。同时购置相关医疗设备，完善停车、医疗废弃物和污水处理等后勤保障设施","2021\n-\n2023",20000,null,"正在进行项目建议书及可行性研究报告编制工作",5000,"完成年度计划建设任务","第一人民\n医院","卫生健康委"]
[2,"第一人民医院传染病区建设及配套设备购置项目","新建","总建筑面积为1.27万平方米的传染病区，其中地上面积9380平方米、地下面积3340平方米，配套设置110张床位，负压病床56张，同时购置相关医疗设备","2021\n-\n2022",{"v":8399.83,"d":"8400"},null,"完成项目建议书、可研批复、初设评审办理、环评、选址意见书及用地规划手续",{"v":6769.83,"d":"6770"},"完成年度计划建设任务","第一人民\n医院","卫生健康委"]
[3,"中医医院二期工程","新建","建筑面积15720㎡门诊医技综合楼，地上建筑面12000㎡，地下建筑3720㎡。主要建设特色中医门诊、急诊应急救治大厅、附属相关医技科室及医疗设备等建设工程","2021\n-\n2023",13800,null,"完成可研批复、地勘报告、环评、社会稳定风险评估及用地规划手续，正进行初步设计编制工作",3000,"完成年度计划建设任务","中医医院","卫生健康委"]
[4,"南湖社区卫生服务中心及医养中心建设项目","新建","新建建筑面积约3500平方米的卫生业务用房一栋及建筑面积约为3500平方米医养中心业务用房一栋",2021,4500,null,"完成项目建议书，正在进行可研报告编制工作",4500,"完成建设任务","南湖社区卫生服务中心","卫生健康委"]
[5,"职业病防治综合楼项目","新建","新建地上十二层、地下二层综合楼一栋，总建筑面积约2.3万平米","2021\n-\n2023",14100,null,"完成项目建议书，正在进行设计、可研、地勘承建方招标",5000,"完成年度节点建设任务","中核四〇四医院管理有限公司","卫生健康委\n四0四公司","全省重点投资项目"]
[6,"公共卫生疫情防治中心建设项目","新建","总建筑面积13000平方米，包括综合实验楼、卫生应急物资储备库、传染病区等，配套建设附属设施","2021\n-\n2022",8000,null,"正在进行项目建议书及可行性研究报告编制工作",3000,"完成年度计划建设任务","疾病预防\n控制中心","卫生健康委"]
["3、保障性安居工程及房地产开发项目（11项）",{"$nulls":4},{"$f":"SUM(F80:F90)","v":{"v":403764.81,"d":"403765"}},null,null,{"$f":"SUM(I80:I90)","v":143445}]
[1,"建设街区棚户区改造二期","改造","总用地面积2万平方米，计划建设7.2万平方米6栋366套高层住宅，并配套建设附属配套商业设施","2021\n-\n2022",34000,null,"已完成施工单位招投标，正在办理施工许可证，计划3月底进场施工",20000,"完成年度计划建设任务（主体全部封顶）","城投公司","城投公司","全省重点投资项目"]
[2,"公路管理局家属院棚户区改造项目","改建","完成家属院内7栋42套平房及自建小房的拆除，新建2栋住宅楼，1栋物业用房及小区内基础设施配套工程建设",2021,{"v":4781.81,"d":"4782"},null,"现已全面开工建设",4782,"完成建设任务","家合房地产开发有限责任公司","建投公司"]
[3,"2021年老旧小区改造工程","改建","改造报社家属院、文化街独栋等小区共23个，171栋住宅单体，共计4049户，包括小区内楼体改造及小区内外基础设施建设",2021,4119,null,"已完成可行性研究报告批复，正在编制初步设计及概算",4117,"完成年度计划建设任务","住建局","住建局","全省重点投资项目"]
[4,"2020年老旧小区改造基础设施配套工程","改造 ","配套完善老旧小区服务类、完善类等公共设施，包括养老抚幼中心、社区服务中心、小区绿化、公共汽车充电设施等",2021,3500,null,"现已全面开工建设",3500,"完成建设任务","住建局","住建局"]
[5,"铁路生活区巷道及配套设施工程","改造","包括巷道、线缆桥架改造、采购等三项内容，改造巷道共9条，总长度约3.1千米。改造7个小区周围线缆桥架，在14个小区新增电动车充电桩，在2个小区各新建1座一体式车棚。对迎宾1-7小区、雄关1-5小区内所有住户的燃气表具进行采购，进行绿化和苗木移植，并对铁路生活区5座换热站设备进行改造","2021\n-\n2022",3306,null,"完成可研批复及初设编制",3046,"完成年度计划建设任务","住建局","住建局"]
[6,"金色海岸项目一期工程","新建","新建住宅及商业用房，总建筑面积60000平方米","2021\n-\n2022",33000,null,"部分工程已开工",5000,"完成年度计划建设任务","凯运房地产开发有限公司","房产服务中心","全省重点投资项目"]
[7,"祥瑞苑小区建设项目","新建","新建祥瑞苑小区住宅楼2栋，综合楼1栋，总建筑面积28000平方米","2021\n-\n2022",7000,null,"开发用地手续刚办理完毕，其他开工所需相关手续陆续办理",3000,"完成年度建设计划","鑫源房地产有限公司","房产服务中心"]
[8,"远东华府住宅五期项目","新建","新建商住楼6栋，同时配套建设地下车库、商铺等配套设施，总建筑面积约3.88万平方米。其中，地上建筑面积3.1万平方米，地下建筑面积7800平方米",2021,15000,null,"现已完成项目备案，正在办理施工图审查",15000,"完成建设任务","远东房地产开发有限\n公司","房产服务\n中心","全省重点投资项目"]
[9,"中鹏东安街住宅项目","新建","建设38.8万平方米的住宅小区，并配套建设相关附属设备","2021\n-\n2025",215000,null,"现已完成项目备案，正在办理施工图审查",50000,"完成年度计划建设任务","中鹏房地产开发有限\n公司","房产服务\n中心"]
[10,"森林公园·壹号苑项目","新建","新建6栋高层住宅楼和1栋商业楼，1层地下车库，总建筑面积5.76万平方米，其中：地上建筑面积4.8万平方米；地下建筑面积9639.18平方米","2021\n-\n2023",23058,null,"现已完成备案及用地预审等前期手续",5000,"完成年度计划建设任务","福康润达房地产开发有限公司","房产服务\n中心"]
[11,"绿洲尚城住宅小区建设项目","新建","新建住宅楼18栋，总建筑面积15.7万平方米，其中，地下面积3.7万平方米，地上面积12万平方米，同时建设商铺、康体中心、宾馆及相关配套设备等","2021\n-\n2022",61000,null,"正在办理项目前期手续",30000,"完成年度建设计划","家合房地产开发有限责任公司","建投公司","全省重点投资项目"]
["（二）生态产业项目（44项）",{"$nulls":4},{"$f":"SUM(F92+F103+F127+F130+F133)","v":{"v":929882.65,"d":"929883"}},null,null,{"$f":"SUM(I92+I103+I127+I130+I133)","v":321283}]
["1、先进装备制造产业（10项）",{"$nulls":4},{"$f":"SUM(F93:F102)","v":243100},null,null,{"$f":"SUM(I93:I102)","v":61600}]
[1,"年产300万吨钢渣水渣超微粉项目","新建","主要建设1条钢渣超细微粉生产线及2条高炉渣超细微粉生产线，办公生活用房及其它辅助设施","2021\n-\n2022",50000,null,"正在办理用地、规划等前期手续，计划3月底开工",12000,"完成年度计划建设任务","甘肃藏建环保新材料科技有限公司","工业园区管委会"]
[2,"不锈钢分公司新增罩式炉项目","新建","对现有生产装备升级改造，增加中、高端400系产品生产能力，完成400系产品更新换代","2021\n-\n2022",14400,null,"进行主体设备设计、供货和调试标段招标工作",7000,"完成年度计划建设任务","宏兴股份\n公司","酒钢公司","全省重点投资项目"]
[3,"顺通机械钢格板建设项目","新建","建设两栋2000平方米生产车间，库房和职工场地1000平方米，露天料场2000平方米，绿化及道路3000平方米。购置带钢纵剪机，压焊机，窄带数控剪断机，冲床，磨齿机等生产设备","2021\n-\n2022",5000,null,"已开工",3000,"完成年度计划建设任务","甘肃顺通机械工程有限公司","工业园区管委会"]
[4,"年处理150万吨钢渣加工及综合利用项目","新建","建设钢渣微粉综合处理生产线两条，生产车间2座，办公楼1栋 ，80T地磅房一栋，职工临时宿舍一栋，机械维修车间一座，钢渣固废原料堆储库（密闭式）2座，钢渣微粉料库2座，料仓两座及其它辅助设备","2021\n-\n2023",20000,null,"现已完成项目备案，正在办理其它手续",5000,"完成年度计划建设任务","嘉峪关市吕江新材料科技有限公司","工信局\n工业园区\n管委会"]
[5,"高精冶炼新材料加工项目","新建","建设车间1座，办公楼1栋及其它辅助设施，购进4台30吨矩形熔炼炉、4台全自动铸造机、3台全自动锯切机等设备，建设全自动铸造生产线4条","2021\n-\n2023",5000,null,"现已完成项目备案，正在办理其它手续",2000,"完成年度计划建设任务","嘉峪关市恒景源铝业有限公司","工信局\n工业园区\n管委会"]
[6,"润源公司冶金渣场碳钢渣全流程选线建设项目","新建","新建碳钢渣处理能力为80万吨/年的碳钢渣生产线，主要包括筛分、破碎、磁选设施及其它辅助设施","2021\n-\n2022",3800,null,"正在开展前期工作",2000,"完成年度计划建设任务","润源公司","酒钢公司"]
[7,"东兴铝业公司电解槽阴极全石墨化结构优化项目（三期工程）","新建","对电解槽进行进一步的优化升级","2021\n-\n2023",32400,null,"正在开展前期工作",20000,"完成年度计划建设任务","东兴铝业\n公司","酒钢公司","全省重点投资项目"]
[8,"动力煤料场建设项目","新建","新建动力煤圆堆料场或C型料场，配套建设翻车机及配套的公辅设施","2021\n-\n2023",50000,null,"正在开展前期工作",5000,"完成项目前期备案手续，项目开工建设","宏兴股份\n公司","酒钢公司"]
[9,"碳钢薄板厂热轧酸洗板(2.5-6.0mm)镀锌铝镁联合机组项目","新建","新建一条产能45万吨热轧酸洗板（厚度2.5-6.0mm）镀锌铝镁生产线及配套设施","2021\n-\n2023",59500,null,"正在开展前期工作，力争尽快开工建设",2600,"完成年度计划建设任务","宏兴股份\n公司","酒钢公司","省列重大项目"]
[10,"年产18万吨石英石及60万吨石英砂生产项目","新建","一期建设18万吨石英石酸洗生产线1条、干法石英砂生产线2条，二期建设年产10万吨石英砂酸洗生产线1条、干法石英砂生产线3条，购置震动给料机、酸洗罐、储酸桶、脉冲除尘器、滚筒筛、颚式破碎机、震动给料机、球磨机、制砂机等主要设备及辅助设施",2021,3000,null,"正在办理开工手续",3000,"完成建设任务","嘉峪关华畅工贸有限公司","工信局"]
["2、节能环保及清洁生产产业（23项）",{"$nulls":4},{"$f":"SUM(F104:F126)","v":{"v":387566.65,"d":"387567"}},null,null,{"$f":"SUM(I104:I126)","v":144848}]
[1,"城市南区生态环境治理工程","新建","用地总面积36.08万平方米，主要建设室外景观绿化、中心湖体、建筑、结构、给排水、电气；绿化面积约17.7万平方米，湖体面积约7.65万平方米，车行道路面积3.1万平方米，园路及硬质铺装面积约为7.4万平方米，泵房、公共卫生间及管理用房总面积约1749.64平方米","2021\n－\n2025",32000,null,"正在委托编制可研",4370,"完成年度计划建设任务","住建局","住建局"]
[2,"森林植被恢复人工造林项目灌溉水源工程","新建","在中水渠道桩号8+130米处设节制分水闸，将中水导入北一支干一支渠，利用北一支干一支渠输水8.43千米，在渠道穿253县道后460米位置处设节制分水闸取水，由泵站提水，通过2.6千米DN600有压球墨铸铁管输水至80万立方米调蓄水池","2021\n-\n2023",4176,null,"完成可研批复，正在进行初步设计的公开招标工作",2400,"完成年度计划建设任务","林草局","林草局"]
[3,"森林植被恢复人工造林项目人工造林工程","新建","造林5606.5亩，其中造林区5476.5亩，沙生植被展示区130亩。林种为防风固沙林，树种以沙生植被为主，包括红柳、柠条、沙棘、胡杨、沙枣、紫穗槐、四季玫瑰、花棒等","2021\n-\n2023",3083,null,"完成可研批复，正在进行初步设计的公开招标工作",2000,"完成年度计划建设任务","林草局","林草局"]
[4,"新城供水厂工程","新建","建设调蓄水池4座，包括人饮用500立方米清水池2座，工业用1000立方米调蓄水池2座，日供水能力2.25万立方米，铺设各类引、输水管道72.23千米，并配套建设相关附属设施","2021\n-\n2022",{"v":7254.65,"d":"7255"},null,"已完成一期工程施工、监理招标",3500,"完成年度计划建设任务","水投公司","水务局"]
[5,"城市废弃物综合利用项目","新建","利用嘉北金砂矿业原有厂房，建设1条建筑垃圾分离生产线。主要购进分拣设备、颚式破碎设备、球磨机、洗砂设备、振动筛、混凝土搅拌设备、制砂机及辅助设施","2021\n-\n2022","\n5000\n",null,"正在办理土地规划的变更手续",2000,"完成年度计划建设任务","甘肃海新顺建筑工程有限公司","工业园区\n管委会"]
[6,"工业园区生态基础设施建设项目","新建","在嘉东及嘉北工业园新建道路3条，道路总长930米，配套安装LED太阳能节能灯及电缆检查井等附属设施；新建园区绿化防风林21.5万平方米，对10万平方米绿化面积进行提升改造",2021,6600,null,"正在开展初步设计等前期工作",6600,"完成建设任务","工业园区\n管委会","工业园区\n管委会"]
[7,"黑山湖水源地设备设施优化改造项目","改造","对转供嘉峪关市农业供水系统进行改造，局部水管道优化；重建黑山湖水源地4#水源井，对原有的6台井洗井；敷设800米DN500井间管道并与原有的联络管连接；在黑山湖水源地至水库消能池处新敷设一条DN1000输水管线","2021\n-\n2022",3500,null,"正在开展前期工作",1300,"完成年度计划建设任务","润源公司","酒钢公司"]
[8,"本部1#2#焦炉优化升级建设项目","改造","建设1组2座7米及以上焦炉，1座200吨/时干熄焦装置，1套10万立方米/时焦炉煤气净化装置，配套建设公辅设施","2021\n-\n2023",245000,null,"已完成可研编制，正在对技术方案进行比对论证，报经酒钢董事会决策后启动",80000,"完成年度计划建设任务","宏兴股份\n公司","酒钢公司","省级生态产业领导包抓项目"]
[9,"不锈钢分公司冷轧酸再生及酸回收项目","新建","结合现有废酸、废水处理设施及能力，优化升级热线酸净化系统、废酸回收存储设施，新建铬钢线废硫酸储存和净化再生设施及配套设施","2021\n-\n2023",8000,null,"正在开展前期工作",2000,"完成年度计划建设任务","宏兴股份\n公司","酒钢公司"]
[10,"铝电4×350MW机组中水回用改造项目","新建","将4×350MW机组的锅炉补水和辅机循环冷却水、脱硫用水、消防及工业用水等水源改为中水水源","2021\n-\n2022",8995,null,"正在开展前期工作",1500,"完成年度计划建设任务","宏晟电热\n公司","酒钢公司"]
[11,"储运部嘉北综合料场胶带机转运站通廊粉尘治理项目一期工程（新运3#、6#及综运21#转运站粉尘治理）","新建","新建集中除尘装置，对相关设施进行密封和配套供配电系统","2021\n-\n2022",3350,null,"正在进行施工标段定价工作，计划3月全面开工",3350,"完成建设任务","宏兴股份\n公司","酒钢公司"]
[12,"利用固体废物生产水泥地面透水砖等建材产品项目","新建","建设年产300万平方米水泥地面透水砖和水泥地砖。计划建设生产线6条，购置固体废料处置设备一套、全自动数控搅拌机6台、全自动数控压砖机6台、全自动包装机1台及其辅助设施","2021\n-\n2022",11800,null,"前期手续已完成，已完成部分项目建设内容",7000,"完成年度计划建设任务","甘肃硕永环保建材有限公司","工信局"]
[13,"宏晟电热公司2×125MW机组1#机通流改造","新建","对2×125MW机组新#1机进行通流改造，提高高中低压汽缸效率",2021,2900,null,"已完成项目前期论证",2900,"完成建设任务","宏晟电热\n公司","酒钢公司"]
[14,"铁合金矿热炉自动节能绿色优化升级项目","新建","对33MVA矿热炉进行升级改造，完成特种合金矿热炉节能绿色改造，升级进行资源综合利用处置",2021,2128,null,"完成特种合金矿热炉无功补偿节能改造及33MVA矿热炉改造初步方案编制",2128,"完成年度计划建设任务","大友企业公司铁合金厂","甘肃省嘉峪关市大友企业公司"]
[15,"冶金熔剂清洁生产及节能技术研究与应用项目","新建","项目一期：新建落地物料存储环境整治项目；粉剂料场和大堆物料新建抑尘网。项目二期：回转窑新型耐火材料及燃烧器应用研究，回转窑窑尾除尘放灰系统升级改造；1#2#磨机磨煤、物资计量优化升级改造。三期：新建密闭式环保原煤储料棚","2021\n-\n2022",3030,null,"完成一期建设",1000,"完成年度计划建设任务","大友嘉镁钙业公司","甘肃省嘉峪关市大友企业公司"]
[16,"低温余热资源回收利用供热改造项目（一期工程）","改造","在1、2、7#高炉处建设冲渣水换热站，敷设管路。对11个换热站设备改型升级，实现换热站远程集中控制及温度智能调节功能","2021\n-\n2022",5000,null,"正在开展前期工作，力争尽快开工建设",1500,"完成年度计划建设任务","宏兴股份\n公司","酒钢公司"]
[17,"选矿厂选矿系统设施优化改造项目","改造","对选矿竖炉、麻石除尘器、球磨机系统、强磁机等设备性能提升改造，对一选浓缩机、加压过滤机、竖炉及磁选泵站管道安全性能提升改造，28-3通廊加固，对电气设备设施升级改造","2021\n-\n2022",4050,null,"正在办理前期手续，力争尽快开工建设",2000,"完成年度计划建设任务","宏兴股份\n公司","酒钢公司"]
[18,"炼铁厂3-6号高炉部分设施优化改造项目","改造","对3号、4号、6号高炉炉体及部分设备升级改造，优化热风炉蓄热体，优化改造喷煤系统管道及制粉设备","2021\n-\n2022",4300,null,"正在办理前期手续，力争尽快开工建设",2000,"完成年度计划建设任务","宏兴股份\n公司","酒钢公司"]
[19,"碳钢薄板厂设备设施优化改造项目","改造","对碳钢薄板厂连铸机、热轧、轧钢工序部分设备及控制系统进行改造","2021\n-\n2022",4000,null,"正在办理前期手续，力争尽快开工建设",2500,"完成年度计划建设任务","宏兴股份\n公司","酒钢公司"]
[20,"动力厂碳钢燃气站制氢系统扩能升级改造项目","改造","对碳钢冷轧燃气站扩能改造，建设800m³/h制氢装置、煤气压缩机及相应配套公辅设施","2021\n-\n2022",2600,null,"正在办理前期手续，力争尽快开工建设",1800,"完成年度计划建设任务","宏兴股份\n公司","酒钢公司"]
[21,"动力厂400万尾矿库输送系统优化升级改造项目","改造","从动力厂400万尾矿库至选烧厂二选工序总砂泵站新敷设两条矿浆输送管道，在400万尾矿库段安装流量计并设置泄矿阀，完善尾矿输送泵监控设施","2021\n-\n2022",3400,null,"正在办理前期手续，力争尽快开工建设",1000,"完成年度计划建设任务","宏兴股份\n公司","酒钢公司"]
[22,"炼铁厂2号高炉6#热风炉改造项目","改造","由内燃式改造为大拱顶顶燃式热风炉。对燃烧室、燃烧器、煤气管道、电器设施及相应配套设备设施进行技术改造","2021\n-\n2022",2400,null,"正在开展前期工作，力争尽快开工建设",2000,"完成年度计划建设任务","宏兴股份\n公司","酒钢公司"]
[23,"20万吨固（废)处置项目","新建","建设固废储存及处置车间、飞灰废液处置车间、暂存库、停车场、办公楼等；处理设备主要由原料化验与控制、预处理系统、给料系统、焚烧系统以及污染控制系统组成","2021\n-\n2023",20000,null,"正在办理备案、环评等前期手续",10000,"完成年度计划建设任务","嘉峪关海中环保科技有限责任公司","工信局\n工业园区管委会"]
["3、清洁能源产业（2项）",{"$nulls":4},{"$f":"SUM(F128:F129)","v":49000},null,null,{"$f":"SUM(I128:I129)","v":32000}]
[1,"嘉峪关正泰二期70兆瓦光储一体化发电项目","新建","项目总装机容量70MW，储能容量7MWh及相关附属配套设施","2021\n-\n2022",45000,null,"正在办理前期手续",30000,"完成年度计划建设任务","嘉峪关正泰光伏发电有限公司","发改委","全省重点投资项目"]
[2,"天然气供气复线工程","新建","新建从西二线嘉峪关压气分输站站外嘉峪关支线接口至嘉峪关天然气门站输气复线，接口位置距压气分输站向北约200米处。复线全长约12公里，管径DN300，设计压力6.3MPa的天然气管线，设计输出能力10亿方/年","2021\n-\n2022",4000,null,"已完成初设审查",2000,"完成年度计划建设任务","嘉峪关中石油昆仑燃气有限公司","发改委"]
["4、军民融合及数据信息产业（2项）",{"$nulls":4},{"$f":"SUM(F131:F132)","v":9815},null,null,{"$f":"SUM(I131:I132)","v":5815}]
[1,"智慧园区工业互联网应用平台","新建","建设园区基础网络及网络安全，建设监控应急指挥中心，建设园区管控一体化平台，包括智慧门户、办公、产业、服务、安监，数据分析及可视化展示",2021,4815,null,"正在开展前期工作",4815,"完成建设任务","工业园区\n管委会","工业园区\n管委会"]
[2,"智慧教育建设项目","新建","智慧校园建设包含智慧课堂，电子书包，数字化实验室，科学实验室，计算机教室，录播教室以及智慧校园云平台","2021\n-\n2022",5000,null,"正在进行项目前期论证",1000,"完成年度计划建设任务","教育局","教育局"]
["5、通道物流及文化旅游产业（7项）",{"$nulls":4},{"$f":"SUM(F134:F140)","v":240401},null,null,{"$f":"SUM(I134:I140)","v":77020}]
[1,"机场改扩建工程","改扩建","主要对现跑道进行改造，新建并改造现有机坪，新建1.4万平方米T2航站楼，改造T1航站楼，新建塔台与航管楼，扩建航站区，配套建设助航灯光、空管、供电、供冷供热、通信等相关设施","2021\n-\n2023",117881,null,"现已完成可研批复、规划选址、用地预审、社会稳定风险评估、节能审查等前期手续",30000,"完成年度计划建设任务","甘肃机场集团","发改委","省列重大项目、\n省级生态产业领导包抓项目"]
[2,"中国西部现代物流港项目","新建","项目总建筑面积约58000平方米，主要新建现代化立体仓库、办公及各类附属设施，购置安装设施设备及信息化系统，配套建设园区道路、给排水、变配电、通讯以及园区场地硬化、绿化等辅助工程","2021\n-\n2022",70000,null,"正在进行规划设计",30000,"完成年度计划建设任务","嘉峪关市金翼城乡电商快递物流集散中心有限责任公司","商务局"]
[3,"慧翔冷链物流园","新建","新建保鲜库、速冻库、冷藏库、仓库、车间、农产品交易大厅等，配套建设露天物流周转场地、铁路站台、办公用房、宿舍、餐厅、检验化验室等，并实施场地平整、园区绿化、道路改造等附属工程","2021\n-\n2023",35000,null,"正在办理前期手续",8000,"完成年度计划建设任务","甘肃慧翔商贸有限公司","商务局","全省重点投资项目"]
[4,"镜铁市场提升改造项目","改造","对现有1号钢结构大棚、小吃城及地下管网进行改造，改造提升总面积为3万平方米","2021\n-\n2022",6500,null,"现已完成可研批复，正在办理建设用地规划手续",1000,"完成年度计划建设任务","市场开发服务中心","市场监督管理局"]
[5,"安远沟村民俗村建设项目","新建","建设面积约28885平方米，建设仿明清式建筑四合院33座；修建民俗村入口景观大门1座、啤酒广场6700平、儿童游乐园2000平、水生态人工湖1500平、木栈道1.5公里、停车场10000平；流转周边非基本农田和林地约98亩，种植观赏性花卉苗木、果树等",2021,3020,null,"完成项目备案",3020,"完成年度建设任务","新城镇人民政府","郊区工作办"]
[6,"国际大酒店装修改造项目","改造","对国际大酒店主楼二层、三层客房进行翻新装修；对一楼会议室、三楼多功能厅进行装修改造；对副楼全部客房进行翻新装修；对水电暖排、消防系统以及线路等配套设施翻新。总计翻新客房137间，会议室3间，多功能厅1间",2021,3000,null,"施工预算已报送财政局进行评审",3000,"完成建设任务","甘肃瑞程融创酒店管理有限公司","文旅集团"]
[7,"甘肃中交华强公寓楼及宾馆建设项目","新建","新建办公楼一栋，建筑面积3000平方米，宾馆一栋，建筑面积6000平方米，配套建设道路、绿化、给排水等附属设施","2021\n-\n2023",5000,null,"已完成备案",2000,"完成年度计划建设任务","甘肃中交华强工程建设有限公司","商务局"]